fUSD/lending_fUSD_20250414
["ID","MTS","AMOUNT","RATE_DAILY","PERIOD"]
[357957173,1744618235340,-500.0,0.00019178,2]
[357957175,1744618235351,-500.0,0.00019178,2]
[357957177,1744618235360,-500.0,0.00019178,2]
[357957179,1744618235369,-928.71,0.00019178,2]
[357957181,1744618235378,-500.0,0.00019178,2]
[357957183,1744618235391,-538.19634373,0.00019178,2]
[357957185,1744618235400,-500.0,0.00019178,2]
[357957187,1744618235410,-560.51991039,0.00019178,2]
[357957189,1744618235420,-603.56,0.00019178,2]
[357957191,1744618235429,-500.0,0.00019178,2]
[357957193,1744618235438,-500.0,0.00019178,2]
[357957195,1744618235449,-500.0,0.00019178,2]
[357957197,1744618235458,-638.56191025,0.00019178,2]
[357957199,1744618235467,-500.0,0.00019178,2]
[357957201,1744618235476,-500.0,0.00019178,2]
[357957203,1744618235486,-500.0,0.00019178,2]
[357957205,1744618235495,-42323.94,0.00019178,2]
[357957207,1744618235504,-500.0,0.00019178,2]
[357957209,1744618235514,-500.0,0.00019178,2]
[357957211,1744618235523,-500.0,0.00019178,2]
[357957213,1744618235532,-500.0,0.00019178,2]
[357957215,1744618235544,-500.0,0.00019178,2]
[357957217,1744618235554,-1802.11,0.00019178,2]
[357957219,1744618235563,-792.19,0.00019178,2]
[357957220,1744618235572,-500.0,0.00019178,2]
[357957222,1744618235583,-572.92,0.00019178,2]
[357957224,1744618235592,-556.20128674,0.00019178,2]
[357957226,1744618235601,-500.0,0.00019178,2]
[357957228,1744618235611,-500.0,0.00019178,2]
[357957230,1744618235622,-500.0,0.00019178,2]
[357957232,1744618235632,-500.0,0.00019178,2]
[357957234,1744618235643,-500.0,0.00019178,2]
[357957236,1744618235653,-518.21301321,0.00019178,2]
[357957238,1744618235662,-500.0,0.00019178,2]
[357957240,1744618235671,-500.0,0.00019178,2]
[357957242,1744618235680,-500.0,0.00019178,2]
[357957244,1744618235690,-200.32082004,0.00019178,2]
[357957246,1744618235699,-500.0,0.00019178,2]
[357957248,1744618235708,-500.0,0.00019178,2]
[357957250,1744618235717,-500.0,0.00019178,2]
[357957252,1744618235727,-530.27240341,0.00019178,2]
[357957254,1744618235737,-500.0,0.00019178,2]
[357957256,1744618235746,-557.03664673,0.00019178,2]
[357957258,1744618235755,-500.0,0.00019178,2]
[357957260,1744618235764,-440.81,0.00019178,2]
[357957262,1744618235773,-4821.57,0.00019178,2]
[357957264,1744618235783,-500.0,0.00019178,2]
[357957266,1744618235791,-500.0,0.00019178,2]
[357957268,1744618235800,-582.29,0.00019178,2]
[357957270,1744618235809,-500.0,0.00019178,2]
[357957272,1744618235819,-500.0,0.00019178,2]
[357957274,1744618235828,-500.0,0.00019178,2]
[357957276,1744618235837,-500.0,0.00019178,2]
[357957278,1744618235847,-500.0,0.00019178,2]
[357957280,1744618235855,-508.67236938,0.00019178,2]
[357957282,1744618235864,-500.0,0.00019178,2]
[357957284,1744618235874,-500.0,0.00019178,2]
[357957285,1744618235883,-500.0,0.00019178,2]
[357957288,1744618235893,-500.0,0.00019178,2]
[357957289,1744618235902,-339.9,0.00019178,2]
[357957291,1744618235911,-500.0,0.00019178,2]
[357957293,1744618235920,-500.0,0.00019178,2]
[357957295,1744618235929,-527.75505797,0.00019178,2]
[357957297,1744618235938,-1024.69,0.00019178,2]
[357957299,1744618235947,-500.0,0.00019178,2]
[357957301,1744618235957,-307.67,0.00019178,2]
[357957303,1744618235967,-500.0,0.00019178,2]
[357957305,1744618235976,-500.0,0.00019178,2]
[357957307,1744618235985,-500.0,0.00019178,2]
[357957309,1744618235994,-500.0,0.00019178,2]
[357957311,1744618236003,-500.0,0.00019178,2]
[357957313,1744618236013,-845.15,0.00019178,2]
[357957315,1744618236022,-500.0,0.00019178,2]
[357957317,1744618236031,-573.05564952,0.00019178,2]
[357957319,1744618236040,-500.0,0.00019178,2]
[357957321,1744618236050,-563.84546388,0.00019178,2]
[357957323,1744618236059,-500.0,0.00019178,2]
[357957325,1744618236068,-500.0,0.00019178,2]
[357957326,1744618236078,-505.61925729,0.00019178,2]
[357957327,1744618236087,-500.0,0.00019178,2]
[357957328,1744618236096,-500.0,0.00019178,2]
[357957329,1744618236106,-500.0,0.00019178,2]
[357957330,1744618236115,-520.28825663,0.00019178,2]
[357957331,1744618236124,-500.0,0.00019178,2]
[357957332,1744618236133,-500.0,0.00019178,2]
[357957333,1744618236143,-500.0,0.00019178,2]
[357957334,1744618236152,-500.0,0.00019178,2]
[357957335,1744618236161,-500.0,0.00019178,2]
[357957336,1744618236171,-500.0,0.00019178,2]
[357957337,1744618236180,-500.55,0.00019178,2]
[357957338,1744618236189,-500.0,0.00019178,2]
[357957339,1744618236199,-500.0,0.00019178,2]
[357957340,1744618236209,-521.08636591,0.00019178,2]
[357957341,1744618236218,-1182.19,0.00019178,2]
[357957342,1744618236227,-500.0,0.00019178,2]
[357957343,1744618236237,-500.0,0.00019178,2]
[357957344,1744618236249,-500.0,0.00019178,2]
[357957345,1744618236259,-500.0,0.00019178,2]
[357957346,1744618236269,-500.0,0.00019178,2]
[357957348,1744618236279,-29483.2893521,0.00019178,2]
[357957350,1744618236288,-190.77138401,0.00019352,2]
[357957351,1744618236298,-190.77138392,0.00019413,2]
[357957352,1744618236307,-500.0,0.00019451,2]
[357957353,1744618236317,-1480.13,0.00019451,2]
[357957354,1744618236326,-1065.19,0.00019451,2]
[357957355,1744618236336,-500.0,0.00019451,2]
[357957356,1744618236345,-500.0,0.00019451,2]
[357957357,1744618236355,-500.0,0.00019452,2]
[357957358,1744618236365,-500.0,0.00019452,2]
[357957359,1744618236374,-395.95368677,0.00019452,2]
[357957360,1744618236384,-236.19,0.00019452,2]
[357957361,1744618236394,-1048.34,0.00019452,2]
[357957362,1744618236403,-500.0,0.00019452,2]
[357957363,1744618236413,-500.0,0.00019452,2]
[357957364,1744618236423,-500.0,0.00019452,2]
[357957365,1744618236432,-500.0,0.00019452,2]
[357957366,1744618236441,-500.0,0.00019452,2]
[357957367,1744618236451,-500.0,0.00019452,2]
[357957368,1744618236461,-500.0,0.00019452,2]
[357957369,1744618236470,-500.0,0.00019452,2]
[357957370,1744618236480,-500.0,0.00019452,2]
[357957371,1744618236489,-249.2,0.00019452,2]
[357957372,1744618236499,-621.25,0.00019452,2]
[357957373,1744618236508,-500.0,0.00019452,2]
[357957374,1744618236518,-411.08781203,0.00019452,2]
[357957375,1744618236528,-500.0,0.00019452,2]
[357957376,1744618236539,-500.0,0.00019452,2]
[357957377,1744618236551,-500.0,0.00019452,2]
[357957378,1744618236560,-500.0,0.00019452,2]
[357957379,1744618236570,-500.0,0.00019452,2]
[357957380,1744618236579,-500.0,0.00019452,2]
[357957381,1744618236588,-640.90928393,0.00019452,2]
[357957382,1744618236597,-500.0,0.00019452,2]
[357957383,1744618236606,-500.0,0.00019452,2]
[357957384,1744618236618,-500.0,0.00019452,2]
[357957385,1744618236627,-500.0,0.00019452,2]
[357957386,1744618236637,-500.0,0.00019452,2]
[357957387,1744618236647,-500.0,0.00019452,2]
[357957388,1744618236656,-500.0,0.00019452,2]
[357957389,1744618236666,-540.05007991,0.00019452,2]
[357957390,1744618236675,-500.0,0.00019452,2]
[357957391,1744618236685,-500.0,0.00019452,2]
[357957392,1744618236694,-457.65,0.00019452,2]
[357957393,1744618236703,-500.0,0.00019452,2]
[357957394,1744618236713,-452.19627174,0.00019452,2]
[357957395,1744618236723,-513.62901587,0.00019452,2]
[357957396,1744618236732,-614.12,0.00019452,2]
[357957397,1744618236742,-213.08,0.00019452,2]
[357957398,1744618236752,-500.0,0.00019452,2]
[357957399,1744618236762,-592.61,0.00019452,2]
[357957400,1744618236771,-601.17,0.00019452,2]
[357957401,1744618236781,-500.0,0.00019452,2]
[357957402,1744618236791,-500.0,0.00019452,2]
[357957403,1744618236800,-634.24,0.00019452,2]
[357957404,1744618236810,-604.89,0.00019452,2]
[357957405,1744618236819,-512.56,0.00019452,2]
[357957406,1744618236829,-155.56778395,0.00019452,2]
[357957407,1744618236838,-500.0,0.00019452,2]
[357957408,1744618236847,-928.71,0.00019452,2]
[357957409,1744618236857,-500.0,0.00019452,2]
[357957410,1744618236866,-500.0,0.00019452,2]
[357957411,1744618236875,-603.56,0.00019452,2]
[357957412,1744618236884,-500.0,0.00019452,2]
[357957413,1744618236894,-500.0,0.00019452,2]
[357957414,1744618236903,-42323.94,0.00019452,2]
[357957415,1744618236913,-500.0,0.00019452,2]
[357957416,1744618236922,-1802.11,0.00019452,2]
[357957417,1744618236931,-792.19,0.00019452,2]
[357957418,1744618236941,-572.92,0.00019452,2]
[357957419,1744618236950,-621.6760959,0.00019452,2]
[357957420,1744618236959,-500.0,0.00019452,2]
[357957421,1744618236968,-500.0,0.00019452,2]
[357957422,1744618236978,-500.0,0.00019452,2]
[357957423,1744618236987,-500.0,0.00019452,2]
[357957424,1744618236996,-500.0,0.00019452,2]
[357957425,1744618237007,-500.0,0.00019452,2]
[357957426,1744618237016,-500.0,0.00019452,2]
[357957427,1744618237025,-500.0,0.00019452,2]
[357957428,1744618237035,-4821.57,0.00019452,2]
[357957429,1744618237044,-338.25,0.00019452,2]
[357957430,1744618237054,-170.82,0.00019452,2]
[357957431,1744618237064,-609.02,0.00019452,2]
[357957432,1744618237073,-570.50356936,0.00019452,2]
[357957433,1744618237083,-500.0,0.00019452,2]
[357957434,1744618237092,-500.0,0.00019452,2]
[357957435,1744618237103,-500.0,0.00019452,2]
[357957436,1744618237112,-1024.69,0.00019452,2]
[357957437,1744618237124,-500.0,0.00019452,2]
[357957438,1744618237135,-500.0,0.00019452,2]
[357957439,1744618237145,-500.0,0.00019452,2]
[357957440,1744618237155,-845.15,0.00019452,2]
[357957441,1744618237164,-500.0,0.00019452,2]
[357957442,1744618237173,-500.0,0.00019452,2]
[357957443,1744618237183,-500.0,0.00019452,2]
[357957444,1744618237192,-500.0,0.00019452,2]
[357957445,1744618237201,-500.0,0.00019452,2]
[357957446,1744618237212,-500.0,0.00019452,2]
[357957447,1744618237222,-500.0,0.00019452,2]
[357957448,1744618237231,-500.55,0.00019452,2]
[357957449,1744618237241,-353.35816017,0.00019452,2]
[357957450,1744618237250,-1182.19,0.00019452,2]
[357957451,1744618237260,-500.0,0.00019452,2]
[357957452,1744618237269,-500.0,0.00019452,2]
[357957453,1744618237279,-161.69,0.00019454,2]
[357957454,1744618237288,-190.77138392,0.00019474,2]
[357957455,1744618237298,-190.77138392,0.00019535,2]
[357957456,1744618237308,-190.77138392,0.00019596,2]
[357957457,1744618237318,-500.0,0.00019725,2]
[357957458,1744618237327,-1480.13,0.00019725,2]
[357957459,1744618237337,-500.0,0.00019726,2]
[357957460,1744618237346,-500.0,0.00019726,2]
[357957461,1744618237356,-1048.34,0.00019726,2]
[357957462,1744618237366,-500.0,0.00019726,2]
[357957463,1744618237375,-500.0,0.00019726,2]
[357957464,1744618237384,-497.67971789,0.00019726,2]
[357957465,1744618237433,-2.32028211,0.00019726,2]
[357957466,1744618237443,-500.0,0.00019726,2]
[357957467,1744618237452,-99.22831713,0.00019726,2]
[357957468,1744618237465,-400.77168287,0.00019726,2]
[357957469,1744618237476,-263.86640001,0.00019726,2]
[357957470,1744618237486,-500.0,0.00019726,2]
[357957471,1744618237495,-318.08026169,0.00019726,2]
[357957472,1744618237505,-4.90799539,0.00019726,2]
[357957473,1744618237516,-495.09200461,0.00019726,2]
[357957474,1744618237526,-45.69574516,0.00019726,2]
[357957475,1744618237550,-470.09774556,0.00019726,2]
[357957476,1744618237561,-105.45650928,0.00019726,2]
[357957477,1744618237571,-500.0,0.00019726,2]
[357957478,1744618237583,-500.0,0.00019726,2]
[357957479,1744618237592,-229.01,0.00019726,2]
[357957480,1744618237602,-500.0,0.00019726,2]
[357957481,1744618237611,-82.82976041,0.00019726,2]
[357957482,1744618237623,-417.17023959,0.00019726,2]
[357957483,1744618237634,-500.0,0.00019726,2]
[357957484,1744618237643,-272.71651606,0.00019726,2]
[357957485,1744618237670,-227.28348394,0.00019726,2]
[357957486,1744618237679,-500.0,0.00019726,2]
[357957487,1744618237689,-500.0,0.00019726,2]
[357957488,1744618237699,-500.0,0.00019726,2]
[357957489,1744618237708,-500.0,0.00019726,2]
[357957490,1744618237720,-500.0,0.00019726,2]
[357957491,1744618237729,-642.68,0.00019726,2]
[357957492,1744618237739,-500.0,0.00019726,2]
[357957493,1744618237748,-364.26,0.00019726,2]
[357957494,1744618237758,-500.0,0.00019726,2]
[357957495,1744618237767,-500.0,0.00019726,2]
[357957496,1744618237777,-592.61,0.00019726,2]
[357957497,1744618237786,-601.17,0.00019726,2]
[357957498,1744618237796,-500.0,0.00019726,2]
[357957499,1744618237805,-500.0,0.00019726,2]
[357957500,1744618237815,-604.89,0.00019726,2]
[357957501,1744618237824,-500.0,0.00019726,2]
[357957502,1744618237833,-928.71,0.00019726,2]
[357957503,1744618237842,-500.0,0.00019726,2]
[357957504,1744618237852,-533.18965802,0.00019726,2]
[357957505,1744618237861,-603.56,0.00019726,2]
[357957506,1744618237871,-179.4754094,0.00019726,2]
[357957507,1744618237880,-500.0,0.00019726,2]
[357957508,1744618237890,-1968.57834961,0.00019726,2]
[357957509,1744618237902,-6796.15339814,0.00019726,2]
[357957514,1744618238480,-500.0,0.00019178,2]
[357957515,1744618238490,-500.0,0.00019178,2]
[357957516,1744618238500,-500.0,0.00019178,2]
[357957517,1744618238509,-500.0,0.00019452,2]
[357957518,1744618238519,-500.0,0.00019452,2]
[357957519,1744618238528,-190.77138392,0.00019656,2]
[357957520,1744618238543,-21413.23017068,0.00019726,2]
[357957521,1744618238590,-670.435461,0.00019726,2]
[357957523,1744618238666,-1650.43404456,0.00019726,2]
[357957524,1744618238678,-3147.89525311,0.00019726,2]
[357957525,1744618238843,-592.14361496,0.00019726,2]
[357957526,1744618238855,-1016.2321986,0.00019726,2]
[357957527,1744618238867,-941.57868834,0.00019726,2]
[357957529,1744618238879,-979.5372909,0.00019726,2]
[357957531,1744618238890,-437.22126349,0.00019726,2]
[357957533,1744618238901,-281.41583456,0.00019726,2]
[357957536,1744618238920,-500.0,0.00019726,2]
[357957538,1744618238932,-1929.08443205,0.00019726,2]
[357957540,1744618238942,-500.0,0.00019726,2]
[357957542,1744618238952,-455.20290925,0.00019726,2]
[357957544,1744618238965,-1346.90709075,0.00019726,2]
[357957546,1744618238974,-792.19,0.00019726,2]
[357957548,1744618238983,-572.92,0.00019726,2]
[357957550,1744618238993,-500.0,0.00019726,2]
[357957552,1744618239002,-500.0,0.00019726,2]
[357957554,1744618239012,-500.0,0.00019726,2]
[357957555,1744618239021,-500.0,0.00019726,2]
[357957557,1744618239030,-500.0,0.00019726,2]
[357957559,1744618239040,-384.96290925,0.00019726,2]
[357957562,1744618239052,-133.8438808,0.00019726,2]
[357957564,1744618239061,-310.60111373,0.00019726,2]
[357957566,1744618239072,-189.39888627,0.00019726,2]
[357957568,1744618239082,-158.83117205,0.00019726,2]
[357957570,1744618239098,-341.16882795,0.00019726,2]
[357957573,1744618239107,-4821.57,0.00019726,2]
[357957575,1744618239116,-500.0,0.00019726,2]
[357957577,1744618239126,-500.0,0.00019726,2]
[357957579,1744618239135,-500.0,0.00019726,2]
[357957581,1744618239144,-1024.69,0.00019726,2]
[357957583,1744618239154,-500.0,0.00019726,2]
[357957584,1744618239163,-500.0,0.00019726,2]
[357957586,1744618239173,-500.0,0.00019726,2]
[357957588,1744618239183,-845.15,0.00019726,2]
[357957590,1744618239193,-500.0,0.00019726,2]
[357957592,1744618239202,-500.0,0.00019726,2]
[357957594,1744618239214,-560.86,0.00019726,2]
[357957596,1744618239223,-180.84,0.00019726,2]
[357957598,1744618239233,-500.0,0.00019726,2]
[357957600,1744618239243,-378.76,0.00019726,2]
[357957601,1744618239252,-277.58,0.00019726,2]
[357957603,1744618239262,-500.55,0.00019726,2]
[357957605,1744618239271,-1182.19,0.00019726,2]
[357957607,1744618239280,-500.0,0.00019726,2]
[357957609,1744618239289,-500.0,0.00019726,2]
[357957611,1744618239299,-610.67,0.00019726,2]
[357957613,1744618239309,-1353.6744414,0.00019799,2]
[357957615,1744618239318,-1416.465136,0.00019838,2]
[357957617,1744618239330,-390.31965959,0.00019838,2]
[357957619,1744618239341,-9915.16184526,0.00019838,2]
[357957621,1744618239352,-778.05335915,0.00019838,2]
[357957623,1744618239362,-200.0,0.0001984,2]
[357957624,1744618239371,-152.0,0.00019841,2]
[357957626,1744618239380,-10681.65618564,0.00019847,2]
[357957629,1744618239395,-901.47596624,0.00019847,2]
[357957686,1744618240579,-190.77138392,0.00019717,2]
[357957687,1744618240588,-309.22861608,0.00019847,2]
[357957688,1744618240694,-500.0,0.00019178,2]
[357957689,1744618240703,-607.63923204,0.00019847,2]
[357957690,1744618240712,-1524.23955835,0.00019856,2]
[357957691,1744618240723,-440.52515515,0.00019856,2]
[357957692,1744618240733,-10535.2352865,0.00019856,2]
[357957693,1744618240741,-12500.0,0.00019865,2]
[357957694,1744618240749,-500.0,0.00019873,2]
[357957695,1744618240758,-12500.0,0.00019874,2]
[357957696,1744618240766,-12500.0,0.00019882,2]
[357957697,1744618240775,-191.71584393,0.00019885,2]
[357957698,1744618240783,-2326.645,0.00019888,2]
[357957699,1744618240791,-12500.0,0.00019891,2]
[357957700,1744618240799,-500.0,0.00019899,2]
[357957701,1744618240807,-1480.13,0.00019899,2]
[357957702,1744618240816,-12500.0,0.000199,2]
[357957703,1744618240825,-375.23358628,0.000199,2]
[357957704,1744618240834,-167.5586135,0.000199,2]
[357957705,1744618240843,-1760.46444872,0.000199,2]
[357957706,1744618240851,-12500.0,0.000199,2]
[357957707,1744618240859,-500.0,0.00019973,2]
[357957708,1744618240868,-500.0,0.00019973,2]
[357957709,1744618240876,-538.77045901,0.00019973,2]
[357957710,1744618240886,-504.77074405,0.00019973,2]
[357957711,1744618240893,-500.50744045,0.00019973,2]
[357957712,1744618240901,-159.88511112,0.00019973,2]
[357957713,1744618240907,-500.0,0.00019973,2]
[357957714,1744618240914,-154.63566114,0.00019973,2]
[357957715,1744618240920,-500.0,0.00019973,2]
[357957716,1744618240927,-501.49922872,0.00019973,2]
[357957717,1744618240935,-503.66283739,0.00019973,2]
[357957718,1744618240941,-3720.26707434,0.0001999,2]
[357957719,1744618240949,-591.235936,0.00019999,2]
[357957720,1744618240956,-474.5,0.00019999,2]
[357957721,1744618240964,-1480.13,0.00019999,2]
[357957722,1744618240971,-1480.13,0.00019999,2]
[357957723,1744618240978,-1480.13,0.00019999,2]
[357957724,1744618240984,-1480.13,0.00019999,2]
[357957725,1744618240992,-1480.13,0.00019999,2]
[357957726,1744618240998,-1480.13,0.00019999,2]
[357957727,1744618241005,-1480.13,0.00019999,2]
[357957728,1744618241013,-1480.13,0.00019999,2]
[357957729,1744618241020,-1480.13,0.00019999,2]
[357957730,1744618241028,-1480.13,0.00019999,2]
[357957731,1744618241035,-1480.13,0.00019999,2]
[357957732,1744618241043,-1480.13,0.00019999,2]
[357957733,1744618241051,-1480.13,0.00019999,2]
[357957734,1744618241060,-1480.13,0.00019999,2]
[357957735,1744618241067,-1480.13,0.00019999,2]
[357957736,1744618241073,-1480.13,0.00019999,2]
[357957737,1744618241079,-1480.13,0.00019999,2]
[357957738,1744618241087,-1480.13,0.00019999,2]
[357957739,1744618241093,-1480.13,0.00019999,2]
[357957740,1744618241100,-1480.29475695,0.00019999,2]
[357957741,1744618241109,-1065.19,0.00019999,2]
[357957742,1744618241116,-1065.19,0.00019999,2]
[357957743,1744618241123,-1065.19,0.00019999,2]
[357957744,1744618241130,-1065.19,0.00019999,2]
[357957745,1744618241136,-1065.19,0.00019999,2]
[357957746,1744618241143,-1065.19,0.00019999,2]
[357957747,1744618241149,-1065.19,0.00019999,2]
[357957748,1744618241156,-1065.19,0.00019999,2]
[357957749,1744618241163,-1065.19,0.00019999,2]
[357957750,1744618241169,-1065.19,0.00019999,2]
[357957751,1744618241176,-1065.19,0.00019999,2]
[357957752,1744618241182,-1065.19,0.00019999,2]
[357957753,1744618241189,-1065.19,0.00019999,2]
[357957754,1744618241196,-1065.19,0.00019999,2]
[357957755,1744618241203,-1065.19,0.00019999,2]
[357957756,1744618241209,-1065.19,0.00019999,2]
[357957757,1744618241217,-1065.19,0.00019999,2]
[357957758,1744618241224,-1065.19,0.00019999,2]
[357957759,1744618241232,-1065.19,0.00019999,2]
[357957760,1744618241239,-1065.19,0.00019999,2]
[357957761,1744618241246,-1065.19,0.00019999,2]
[357957762,1744618241253,-1065.19,0.00019999,2]
[357957763,1744618241260,-1065.20414242,0.00019999,2]
[357957764,1744618241267,-500.0,0.00019999,2]
[357957765,1744618241274,-500.0,0.00019999,2]
[357957766,1744618241281,-500.0,0.00019999,2]
[357957767,1744618241289,-500.0,0.00019999,2]
[357957768,1744618241296,-500.0,0.00019999,2]
[357957769,1744618241303,-500.0,0.00019999,2]
[357957770,1744618241310,-500.0,0.00019999,2]
[357957771,1744618241316,-500.0,0.00019999,2]
[357957772,1744618241323,-500.0,0.00019999,2]
[357957773,1744618241329,-592.1059884,0.00019999,2]
[357957774,1744618241336,-422.93771787,0.00019999,2]
[357957775,1744618241342,-150.0,0.00019999,2]
[357957776,1744618241349,-150.0,0.00019999,2]
[357957777,1744618241356,-150.0,0.00019999,2]
[357957778,1744618241363,-150.0,0.00019999,2]
[357957779,1744618241369,-150.0,0.00019999,2]
[357957781,1744618241379,-150.0,0.00019999,2]
[357957783,1744618241388,-150.0,0.00019999,2]
[357957785,1744618241398,-150.0,0.00019999,2]
[357957786,1744618241408,-150.0,0.00019999,2]
[357957787,1744618241418,-150.0,0.00019999,2]
[357957788,1744618241427,-150.0,0.00019999,2]
[357957789,1744618241437,-155.40338861,0.00019999,2]
[357957790,1744618241446,-979.0,0.0002,2]
[357957791,1744618241456,-206248.15144369,0.0002,2]
[357957792,1744618241466,-262.45863438,0.0002,2]
[357957793,1744618241476,-362396.51160665,0.0002,2]
[357957794,1744618241565,-1367.68,0.00019178,2]
[357957795,1744618241575,-500.0,0.00019452,2]
[357957796,1744618241585,-7789.02974464,0.0002,2]
[357957797,1744618241596,-2614.10488298,0.0002,2]
[357957802,1744618243587,-464.86247294,0.0002,2]
[357957804,1744618246353,-94.07430714,0.00019178,2]
[357957819,1744618247017,-405.92569286,0.00019178,2]
[357957821,1744618247026,-515.08674863,0.00019178,2]
[357957823,1744618247036,-1367.68,0.00019452,2]
[357957825,1744618247045,-500.0,0.00019726,2]
[357957827,1744618247054,-1367.68,0.00019726,2]
[357957829,1744618247063,-190.77138392,0.00019778,2]
[357957831,1744618247072,-500.0,0.00019863,2]
[357957833,1744618247081,-500.0,0.00019863,2]
[357957835,1744618247091,-500.0,0.00019863,2]
[357957837,1744618247100,-500.0,0.00019863,2]
[357957839,1744618247109,-500.0,0.00019863,2]
[357957841,1744618247119,-500.0,0.00019863,2]
[357957843,1744618247128,-1112.64197459,0.0002,2]
[357957847,1744618247157,-3775.16918588,0.0002,2]
[357957873,1744618315191,159.934537,0.00025,30]
[357957877,1744618831846,186.281473,0.00025,30]
[357957878,1744618832127,186.281473,0.00024275,30]
[357957879,1744618832425,186.281473,0.0002355,30]
[357957880,1744618832902,186.281473,0.00022825,30]
[357957881,1744618833037,186.281473,0.000221,30]
[357957882,1744618837387,186.281473,0.0002,4]
[357957883,1744618837682,186.281473,0.0002,4]
[357957884,1744618837974,186.281473,0.0002,4]
[357957885,1744618838305,186.281473,0.0002,4]
[357957886,1744618838623,186.281473,0.0002,4]
[357957887,1744618840098,186.281473,0.00019999,5]
[357957888,1744618922122,327.17027842,0.00016845,2]
[357957889,1744618922152,241.85972158,0.00016845,2]
[357957901,1744619152693,41031.11341955,0.0001999,3]
[357957905,1744619213118,-383.0,0.00019,2]
[357957906,1744619213148,-283.53144733,0.00019078,2]
[357957907,1744619235289,6902.74,0.00019339,5]
[357957923,1744619417939,187.0,0.0002,3]
[357957927,1744619431443,-250.0,0.00018507,2]
[357957929,1744619431453,-243.22,0.00018532,2]
[357957931,1744619431463,-300.0,0.00019099,2]
[357957933,1744619431473,-6810.57317673,0.000191,2]
[357957935,1744619431498,-306.0,0.000191,2]
[357957936,1744619431606,-506.56201684,0.000191,2]
[357957937,1744619431661,-1321.49999983,0.000191,2]
[357957938,1744619431770,-1097.64421105,0.000191,2]
[357957939,1744619431779,-60.94921655,0.00019109,2]
[357957989,1744619437503,-5939.05078345,0.00019109,2]
[357957990,1744619437514,-569.03,0.00019109,2]
[357957991,1744619437523,-1000.0,0.00019143,2]
[357957992,1744619437533,-668.65185757,0.00019166,2]
[357957993,1744619437543,-1299.38,0.00019168,2]
[357957994,1744619437552,-441.83627154,0.00019173,2]
[357957995,1744619437561,-376.08761113,0.00019173,2]
[357957996,1744619437571,-183.07776595,0.00019177,2]
[357957997,1744619437580,-507.64273008,0.00019178,2]
[357957998,1744619437590,-500.0,0.00019178,2]
[357957999,1744619437599,-503.84499395,0.00019178,2]
[357958000,1744619437609,-302.1341821,0.00019178,2]
[357958001,1744619437618,-500.04593764,0.00019178,2]
[357958002,1744619437628,-562.11186947,0.00019178,2]
[357958003,1744619437638,-577.31809717,0.00019178,2]
[357958004,1744619437647,-500.0,0.00019178,2]
[357958005,1744619437657,-500.0,0.00019178,2]
[357958006,1744619437666,-500.0,0.00019178,2]
[357958007,1744619437676,-508.65652607,0.00019178,2]
[357958008,1744619437685,-500.0,0.00019178,2]
[357958009,1744619437693,-513.89445482,0.00019178,2]
[357958010,1744619437702,-500.0,0.00019178,2]
[357958011,1744619437711,-500.0,0.00019178,2]